[Event "Charlotte Spring IM-B 2024"]
[Site "Charlotte"]
[Date "2024.03.30"]
[Round "5.1"]
[White "Tang, Benjamin"]
[Black "Diaz Charpentier, Kristel Meliss"]
[Result "1-0"]
[ECO "B76"]
[WhiteElo "2324"]
[BlackElo "1990"]
[Annotator "RC"]
[PlyCount "43"]
[EventDate "2024.03.27"]
[EventType "tourn"]
[EventCountry "USA"]
[SourceTitle "playchess.com"]
[Source "ChessBase"]
[SourceQuality "1"]
[TimeControl "5400+30"]

1. e4 {[%emt 1:31:00]} c5 {[%emt 1:31:00]} 2. Nf3 {[%emt 0:00:30]} d6 {[%emt 0:00:30]} 3. d4 cxd4 4. Nxd4 {[%emt 0:01:00]} Nf6 {[%emt 0:01:00]} 5. Nc3 {[%emt 0:00:30]} g6 {[%emt 0:00:30]} 6. Be3 Bg7 {[%emt 0:00:30]} 7. f3 {[%emt 0:01:00]} O-O {[%emt 0:00:30]} 8. Qd2 {[%emt 0:00:30]} Nc6 {[%emt 0:00:30]} 9. O-O-O {[%emt 0:00:30]} d5 {[%emt 0:00:30]} 10. Nxc6 {[%emt 0:00:30]} bxc6 {[%emt 0:00:30]} 11. Bh6 {[%emt 0:00:30]} Qa5 {[%emt 0:00:30]} 12. Bxg7 {[%emt 0:00:30]} Kxg7 {[%emt 0:00:30]} 13. exd5 {[%emt 0:00:30]} cxd5 {[%emt 0:00:30]} 14. g4 Be6 {[%emt 0:00:30]} 15. g5 {[%emt 0:01:00]} Ne8 16. h4 {[%emt 0:00:30]} Nd6 17. h5 {[%emt 0:00:30]} Nf5 {[%emt 0:01:30]} 18. hxg6 {[%emt 0:00:30]} fxg6 {[%emt 0:00:30]} 19. Bd3 {[%emt 0:00:30]} Qb6 {[%emt 0:00:30]} 20. Qh2 {[%emt 0:00:30]} Qe3+ {[%emt 0:00:30]} 21. Kb1 {[%emt 0:00:30]} Qxg5 {[%emt 0:00:30]} 22. Rdg1 {[%emt 0:00:30]} 1-0

[Event "Charlotte Spring IM-B 2024"]
[Site "Charlotte"]
[Date "2024.03.30"]
[Round "5.2"]
[White "Jiang, Andrew"]
[Black "Lima, Darcy"]
[Result "0-1"]
[ECO "C55"]
[WhiteElo "2181"]
[BlackElo "2364"]
[Annotator "RC"]
[PlyCount "48"]
[EventDate "2024.03.27"]
[EventType "tourn"]
[EventCountry "USA"]
[SourceTitle "playchess.com"]
[Source "ChessBase"]
[SourceQuality "1"]
[TimeControl "5400+30"]

1. e4 {[%emt 1:31:00]} e5 {[%emt 1:31:00]} 2. Nf3 {[%emt 0:00:30]} Nc6 {[%emt 0:00:30]} 3. Bc4 Nf6 {[%emt 0:00:30]} 4. d3 {[%emt 0:01:00]} h6 {[%emt 0:00:30]} 5. a4 {[%emt 0:00:30]} g6 {[%emt 0:00:30]} 6. O-O {[%emt 0:00:30]} d6 {[%emt 0:00:30]} 7. c3 {[%emt 0:00:30]} Bg7 {[%emt 0:00:30]} 8. b4 {[%emt 0:00:30]} O-O {[%emt 0:00:30]} 9. b5 {[%emt 0:00:30]} Ne7 {[%emt 0:00:30]} 10. Re1 g5 {[%emt 0:00:30]} 11. Nbd2 {[%emt 0:01:00]} Ng6 {[%emt 0:00:30]} 12. Nf1 {[%emt 0:00:30]} c6 {[%emt 0:00:30]} 13. Ng3 {[%emt 0:00:30]} g4 {[%emt 0:00:30]} 14. Nd2 {[%emt 0:00:30]} d5 {[%emt 0:00:30]} 15. Bb3 {[%emt 0:00:30]} Re8 {[%emt 0:00:30]} 16. Ndf1 {[%emt 0:00:30]} Nh4 {[%emt 0:00:30]} 17. Be3 {[%emt 0:00:30]} Be6 {[%emt 0:00:30]} 18. bxc6 {[%emt 0:00:30]} bxc6 {[%emt 0:00:30]} 19. a5 {[%emt 0:00:30]} Qc7 {[%emt 0:00:30]} 20. Qc1 {[%emt 0:00:30]} Kh7 {[%emt 0:00:30]} 21. Bc2 {[%emt 0:00:30]} dxe4 {[%emt 0:00:30]} 22. dxe4 {[%emt 0:00:30]} c5 {[%emt 0:00:30]} 23. Nf5 {[%emt 0:00:30]} Bxf5 {[%emt 0:00:30]} 24. exf5 {[%emt 0:00:30]} Qc6 {[%emt 0:00:30]} 0-1

[Event "Charlotte Spring IM-B 2024"]
[Site "Charlotte"]
[Date "2024.03.30"]
[Round "5.3"]
[White "Chirilov, James A"]
[Black "Bregadze, Levan"]
[Result "0-1"]
[ECO "B32"]
[WhiteElo "2082"]
[BlackElo "2435"]
[Annotator "TA"]
[PlyCount "116"]
[EventDate "2024.03.27"]
[EventType "tourn"]
[EventCountry "USA"]
[SourceTitle "playchess.com"]
[Source "ChessBase"]
[SourceQuality "1"]
[TimeControl "5400+30"]

{[%evp 9,116,58,60,32,41,42,65,22,39,21,21,0,0,0,0,11,0,0,-4,-4,0,-16,-26,-22,-19,-18,-25,-24,-22,-23,-16,-31,-25,-38,-41,-72,-74,-129,-119,-121,-102,-100,-88,-89,-95,-97,-84,-93,-75,-84,-62,-99,-98,-158,-127,-138,-134,-149,-154,-159,-156,-130,-130,-178,-182,-338,-297,-387,-387,-481,-177,-602,-419,-581,-291,-515,-218,-684,-604,-753,-606,-1051,-606,-375,-300,-1319,-8,-336,-143,-143,-143,-29969,-29966,-29976,-29977,-29977,-29978,-29978,-29979,-29979,-29979,-29979,-29980,-29979,-29981,-29980,-29981,-29981,-29981]} 1. e4 c5 2. Nf3 Nc6 3. d4 cxd4 4. Nxd4 Qb6 5. Nb3 g6 6. Nc3 Bg7 7. Be3 Qb4 8. Bd2 {White is slightly better.} Bxc3 9. Bxc3 Qxe4+ 10. Be2 {[%cal Of2f3] Black must now prevent f3!} Nf6 $1 11. O-O O-O 12. Re1 Qf4 13. Bf3 {Against d5} d5 14. Nd4 ({Much worse is} 14. Bxd5 Ng4 15. h3 Qxf2+ 16. Kh1 Ne3 $17) 14... Nxd4 15. Qxd4 Qxd4 16. Bxd4 {This pair of bishops is nice.} Be6 17. Bxf6 exf6 18. Rad1 Rac8 19. c3 Rfd8 {[%cal Od5d4]} 20. Rd4 Rd6 21. Re2 Rc4 22. Red2 Rb6 23. R4d3 {[#]} (23. Rxc4 $142 dxc4 24. g3) 23... d4 $1 $17 {[%mdl 512]} 24. b3 Rxc3 25. Rxd4 Rc1+ 26. Rd1 Rxd1+ 27. Rxd1 {[%mdl 4096] Endgame. KRB-KRB} Ra6 28. Rd2 Ra3 29. Kf1 (29. Bxb7 Bxb3 30. Bd5 (30. Rd8+ $2 Kg7 $19) 30... Bxd5 31. Rxd5 Rxa2) 29... b5 30. Bd5 Bf5 31. b4 ({White should play} 31. Ke1) 31... Be6 32. Bxe6 fxe6 {KR-KR} 33. Rd6 Rxa2 34. Rxe6 Kf7 35. Rc6 g5 36. h3 (36. Rc5 $17) 36... h5 37. f4 $2 (37. g3) 37... gxf4 $19 38. Rc5 a6 39. Rxh5 Kg6 {Inhibits Rf5.} (39... Rb2 40. Rh7+ Kg6) 40. Rc5 $2 (40. Rh8) 40... Ra4 41. Rc6 Rxb4 {Strongly threatening ...a5.} 42. Rxa6 Rb2 (42... Rb1+ $142 43. Ke2 Kg5) 43. Rb6 $2 (43. Ra3) 43... b4 44. Rb5 b3 {...Rb1+ would now be deadly.} 45. Kg1 f5 46. Rb4 Kg5 47. Kf1 $2 {[#]} (47. h4+ Kg4 (47... Kxh4 $2 48. Rxf4+ Kg3 49. Rf3+ Kg4 50. Kf1 $19) 48. Kh2) 47... f3 $2 48. h4+ $2 {[%mdl 8192]} (48. gxf3 $11 {and White has nothing to worry.} f4 49. Ke1) 48... Kh5 (48... Kh6 $19 49. gxf3 Kh5) 49. gxf3 $17 {[#]} f4 $1 {Black is more active.} 50. Kg1 $2 {[%mdl 8192] White does not recover from this.} (50. Ke1 $17) 50... Kxh4 {Black mates.} 51. Rxf4+ Kh3 52. Rb4 Rg2+ 53. Kf1 b2 54. f4 Kh2 55. f5 {[#]} b1=Q+ $1 {[%mdl 512]} 56. Rxb1 Rg1+ 57. Kf2 Rxb1 58. Kf3 Rb4 {Weighted Error Value: White=0.82/Black=0.37.  Loses game:     	White=2     	---        Missed win:     	---       	Black=1      Mistake:       	White=6     	Black=2      Inaccurate:     	White=4     	Black=1      OK:         	White=13    	Black=15     Best:        	White=1     	Black=4      Strong:       	---       	Black=2      Brilliant:      	---       	Black=1} 0-1

[Event "Charlotte Spring IM-B 2024"]
[Site "Charlotte"]
[Date "2024.03.30"]
[Round "5.4"]
[White "Nandhakumar, Vaseegaran"]
[Black "Castillo Coca, Mairebis"]
[Result "1-0"]
[ECO "E65"]
[WhiteElo "2251"]
[BlackElo "2043"]
[Annotator "RC"]
[PlyCount "113"]
[EventDate "2024.03.27"]
[EventType "tourn"]
[EventCountry "USA"]
[SourceTitle "playchess.com"]
[Source "ChessBase"]
[SourceQuality "1"]
[TimeControl "5400+30"]

1. d4 {[%emt 1:31:00]} d6 {[%emt 1:31:00]} 2. Nf3 {[%emt 0:00:30]} g6 {[%emt 0:00:30]} 3. g3 {[%emt 0:00:30]} Bg7 {[%emt 0:00:30]} 4. Bg2 {[%emt 0:00:30]} Nf6 {[%emt 0:00:30]} 5. O-O {[%emt 0:00:30]} O-O {[%emt 0:00:30]} 6. b3 {[%emt 0:00:30]} c5 {[%emt 0:00:30]} 7. Bb2 {[%emt 0:00:30]} Qc7 {[%emt 0:00:30]} 8. c4 {[%emt 0:00:30]} a6 {[%emt 0:00:30]} 9. Nc3 {[%emt 0:00:30]} cxd4 {[%emt 0:00:30]} 10. Nxd4 {[%emt 0:00:30]} Nc6 {[%emt 0:00:30]} 11. Rc1 {[%emt 0:00:30]} Bd7 {[%emt 0:00:30]} 12. Nd5 {[%emt 0:00:30]} Qd8 {[%emt 0:00:30]} 13. Nxc6 {[%emt 0:00:30]} Bxc6 {[%emt 0:00:30]} 14. Nxf6+ {[%emt 0:00:30]} Bxf6 {[%emt 0:00:30]} 15. Bxf6 {[%emt 0:00:30]} exf6 {[%emt 0:00:30]} 16. Bxc6 {[%emt 0:00:30]} bxc6 {[%emt 0:00:30]} 17. Qd4 {[%emt 0:00:30]} Qe7 {[%emt 0:00:30]} 18. e3 {[%emt 0:00:30]} Rfd8 {[%emt 0:00:30]} 19. Qb6 {[%emt 0:00:30]} Qe4 {[%emt 0:00:30]} 20. Rfd1 {[%emt 0:00:30]} Kg7 {[%emt 0:00:30]} 21. Rd4 Qf3 {[%emt 0:00:30]} 22. Rf4 {[%emt 0:01:00]} Qh5 {[%emt 0:00:30]} 23. Qxc6 {[%emt 0:00:30]} Qc5 {[%emt 0:00:30]} 24. Qd5 {[%emt 0:00:30]} Rac8 {[%emt 0:00:30]} 25. Rd1 a5 26. Rfd4 Qa3 27. R4d2 a4 28. Qa5 Ra8 29. Qc3 axb3 30. axb3 Rab8 31. Rd3 h5 32. e4 Qc5 33. Rf3 Qe5 34. Qxe5 fxe5 35. Rd5 Kf8 36. Rfd3 Ke7 37. c5 f6 38. cxd6+ Kd7 39. Kf1 Rdc8 40. Rf3 Rf8 41. Ke1 Rb4 42. Rxe5 Kxd6 43. Rd5+ Ke6 44. Re3 Rxe4 45. Rxe4+ Kxd5 46. Re3 Ra8 47. Ke2 Ra2+ 48. Kf3 Rb2 49. h3 g5 50. Rd3+ Ke5 51. Rc3 g4+ 52. hxg4 hxg4+ 53. Kxg4 Rxf2 54. Re3+ Kd4 55. Rf3 Rb2 56. Kf5 Rg2 57. g4 1-0

[Event "Charlotte Spring IM-B 2024"]
[Site "Charlotte"]
[Date "2024.03.30"]
[Round "5.5"]
[White "Becerra Rivero, Julio"]
[Black "Narayanan, Samrug"]
[Result "1/2-1/2"]
[ECO "C67"]
[WhiteElo "2411"]
[BlackElo "2343"]
[Annotator "RC"]
[PlyCount "45"]
[EventDate "2024.03.27"]
[EventType "tourn"]
[EventCountry "USA"]
[SourceTitle "playchess.com"]
[Source "ChessBase"]
[SourceQuality "1"]
[TimeControl "5400+30"]

1. e4 {[%emt 1:31:00]} e5 {[%emt 1:31:00]} 2. Nf3 {[%emt 0:00:30]} Nc6 {[%emt 0:00:30]} 3. Bb5 {[%emt 0:00:30]} Nf6 {[%emt 0:00:30]} 4. O-O {[%emt 0:00:30]} Nxe4 {[%emt 0:00:30]} 5. d4 {[%emt 0:00:30]} Nd6 {[%emt 0:00:30]} 6. Bxc6 {[%emt 0:00:30]} dxc6 {[%emt 0:00:30]} 7. dxe5 {[%emt 0:00:30]} Nf5 {[%emt 0:00:30]} 8. Qxd8+ {[%emt 0:00:30]} Kxd8 {[%emt 0:00:30]} 9. Nc3 {[%emt 0:00:30]} Ke8 {[%emt 0:00:30]} 10. h3 {[%emt 0:00:30]} h5 {[%emt 0:00:30]} 11. b3 {[%emt 0:00:30]} Be7 12. Rd1 Be6 13. Bf4 Rd8 14. Rxd8+ Bxd8 15. Rd1 h4 16. Ng5 Rh6 17. Nce4 Be7 18. Nxe6 Rxe6 19. Ng5 Rg6 20. Nf3 c5 21. c4 Ra6 22. Rd2 Nd4 23. Be3 1/2-1/2

[Event "Charlotte Spring IM-B 2024"]
[Site "Charlotte"]
[Date "2024.03.30"]
[Round "6.1"]
[White "Diaz Charpentier, Kristel Meliss"]
[Black "Narayanan, Samrug"]
[Result "0-1"]
[ECO "D38"]
[WhiteElo "1990"]
[BlackElo "2343"]
[Annotator "RC"]
[PlyCount "119"]
[EventDate "2024.03.27"]
[EventType "tourn"]
[EventCountry "USA"]
[SourceTitle "playchess.com"]
[Source "ChessBase"]
[SourceQuality "1"]
[TimeControl "5400+30"]

1. d4 {[%emt 1:31:00]} d5 {[%emt 0:03:17]} 2. c4 {[%emt 0:00:00]} e6 {[%emt 0:00:03]} 3. Nf3 {[%emt 0:00:00]} Nf6 {[%emt 0:00:04]} 4. Nc3 {[%emt 0:00:00]} Bb4 {[%emt 0:00:05]} 5. Bg5 {[%emt 0:00:00]} h6 {[%emt 0:00:04]} 6. Bxf6 {[%emt 0:00:00]} Qxf6 {[%emt 0:00:04]} 7. e3 {[%emt 0:00:00]} O-O {[%emt 0:00:11]} 8. a3 {[%emt 0:00:00]} Bxc3+ {[%emt 0:00:05]} 9. bxc3 {[%emt 0:00:00]} c5 {[%emt 0:00:27]} 10. Be2 {[%emt 0:00:00]} Nc6 {[%emt 0:01:43]} 11. O-O {[%emt 0:00:00]} Rd8 {[%emt 0:01:52]} 12. Qc2 {[%emt 0:00:00]} b6 {[%emt 0:04:31]} 13. Rfd1 {[%emt 0:00:00]} cxd4 {[%emt 0:02:26]} 14. cxd4 {[%emt 0:00:00]} dxc4 {[%emt 0:00:08]} 15. Qxc4 {[%emt 0:00:00]} Bb7 {[%emt 0:02:41]} 16. Rac1 {[%emt 0:00:00]} Rac8 {[%emt 0:00:57]} 17. Qa2 {[%emt 0:00:00]} Qf5 {[%emt 0:07:24]} 18. h3 {[%emt 0:00:00]} Na5 {[%emt 0:04:46]} 19. Qb2 {[%emt 0:00:00]} Qd5 {[%emt 0:02:46]} 20. a4 {[%emt 0:00:00]} Bc6 {[%emt 0:03:26]} 21. Ra1 {[%emt 0:00:00]} Rc7 {[%emt 0:05:59]} 22. Bd3 {[%emt 0:00:00]} Rdc8 {[%emt 0:08:16]} 23. e4 {[%emt 0:00:00]} Qb3 {[%emt 0:00:10]} 24. Qe2 {[%emt 0:00:00]} Bb7 {[%emt 0:00:53]} 25. Ne5 {[%emt 0:00:00]} Qb4 {[%emt 0:01:44]} 26. d5 {[%emt 0:00:00]} exd5 {[%emt 0:01:07]} 27. exd5 {[%emt 0:00:00]} Bxd5 {[%emt 0:01:54]} 28. Bf5 {[%emt 0:00:00]} Be6 {[%emt 0:01:22]} 29. Bxe6 {[%emt 0:00:00]} fxe6 {[%emt 0:00:03]} 30. Ng6 {[%emt 0:00:00]} Qc4 {[%emt 0:05:10]} 31. Qe5 {[%emt 0:00:00]} Kh7 {[%emt 0:04:31]} 32. Nf4 {[%emt 0:02:03]} Rc5 {[%emt 0:01:42]} 33. Qe3 {[%emt 0:00:16]} e5 {[%emt 0:15:24]} 34. Nd3 {[%emt 0:03:20]} R5c7 {[%emt 0:01:10]} 35. Nxe5 {[%emt 0:00:26]} Qe6 {[%emt 0:00:40]} 36. Ra3 {[%emt 0:02:51]} Rc5 {[%emt 0:02:24]} 37. Qe4+ {[%emt 0:02:41]} Kg8 {[%emt 0:00:20]} 38. Re1 {[%emt 0:00:15]} Nc4 {[%emt 0:01:03]} 39. Nxc4 {[%emt 0:00:35]} Qxe4 {[%emt 0:00:03]} 40. Rxe4 {[%emt 0:00:04]} Rxc4 {[%emt 0:00:03]} 41. Re7 {[%emt 0:00:22]} R8c7 {[%emt 0:00:09]} 42. Rxc7 {[%emt 0:03:23]} Rxc7 {[%emt 0:00:03]} 43. Kf1 {[%emt 0:01:02]} Kf7 {[%emt 0:00:04]} 44. Ke2 {[%emt 0:00:05]} Ke6 {[%emt 0:00:10]} 45. Kd3 {[%emt 0:00:29]} Kd5 {[%emt 0:00:06]} 46. Rc3 {[%emt 0:01:05]} Rxc3+ {[%emt 0:00:10]} 47. Kxc3 {[%emt 0:00:02]} Ke4 {[%emt 0:00:48]} 48. Kc4 {[%emt 0:00:33]} a6 {[%emt 0:00:04]} 49. h4 {[%emt 0:01:25]} h5 {[%emt 0:00:08]} 50. Kc3 {[%emt 0:00:20]} b5 {[%emt 0:00:31]} 51. axb5 {[%emt 0:00:07]} axb5 {[%emt 0:00:05]} 52. Kb4 {[%emt 0:00:04]} Kd3 {[%emt 0:00:11]} 53. Kxb5 {[%emt 0:01:53]} Ke2 {[%emt 0:00:03]} 54. f3 {[%emt 0:00:38]} Kf2 {[%emt 0:00:05]} 55. g4 {[%emt 0:00:13]} hxg4 {[%emt 0:02:22]} 56. fxg4 {[%emt 0:00:06]} Kg3 {[%emt 0:00:03]} 57. h5 {[%emt 0:00:32]} Kxg4 {[%emt 0:00:03]} 58. h6 {[%emt 0:00:09]} gxh6 {[%emt 0:00:03]} 59. Kc4 {[%emt 0:00:04]} Kf3 {[%emt 0:00:09]} 60. Kd4 {[%emt 0:04:27]} 0-1

[Event "Charlotte Spring IM-B 2024"]
[Site "Charlotte"]
[Date "2024.03.30"]
[Round "6.2"]
[White "Castillo Coca, Mairebis"]
[Black "Becerra Rivero, Julio"]
[Result "0-1"]
[ECO "B13"]
[WhiteElo "2043"]
[BlackElo "2411"]
[Annotator "TA"]
[PlyCount "64"]
[EventDate "2024.03.27"]
[EventType "tourn"]
[EventCountry "USA"]
[SourceTitle "playchess.com"]
[Source "ChessBase"]
[SourceQuality "1"]
[TimeControl "5400+30"]

{[%evp 9,64,3,0,4,0,-14,0,0,8,11,3,6,28,16,16,13,30,6,23,10,13,0,24,21,38,0,0,0,0,-12,0,0,0,-83,-78,-261,-215,-497,-402,-405,0,-515,-264,-434,-418,-429,-467,-446,-466,-461,-471,-439,-290,-427,-249,-741,-732]} 1. d4 {[%emt 0:01:01]} Nf6 {[%emt 1:31:00]} 2. Nc3 {[%emt 0:00:27]} d5 {[%emt 0:00:00]} 3. Bf4 {[%emt 0:00:12]} c5 {[%emt 0:00:00]} 4. e3 {[%emt 0:00:13]} cxd4 {[%emt 0:00:00]} 5. exd4 {[%emt 0:00:01]} Bg4 {[%emt 0:00:00]} 6. f3 {[%emt 0:00:21]} Bd7 {[%emt 0:00:00]} 7. Qd2 {[%emt 0:06:36]} e6 {[%emt 0:00:00]} 8. Nb5 {[%emt 0:00:30] The position is equal.} Bxb5 {[%emt 0:00:00]} 9. Bxb5+ {[%emt 0:00:01]} Nc6 {[%emt 0:00:00]} 10. c3 {[%emt 0:00:23]} Be7 {[%emt 0:00:00]} 11. Ne2 {[%emt 0:00:40]} O-O {[%emt 0:00:00]} 12. Bd3 {[%emt 0:08:20]} Nd7 {[%emt 0:00:00]} 13. Bc2 {[%emt 0:09:39][%cal Oh2h4]} Re8 {[%emt 0:00:00]} 14. Qd3 {[%emt 0:02:44]} Nf8 {[%emt 0:00:00]} 15. h4 {[%emt 0:06:46][%cal Bh2h4,Bh4h5][%mdl 32]} Rc8 {[%emt 0:00:00]} 16. h5 {[%emt 0:02:35]} a6 {[%emt 0:00:00]} 17. a4 {[%emt 0:01:06]} Na5 {[%emt 0:00:00]} 18. b3 {[%emt 0:07:53]} Nc6 $1 {[%emt 0:00:00]} 19. Kf2 {[%emt 0:03:12] [#]} e5 $1 {[%emt 0:00:00]} 20. dxe5 {[%emt 0:01:00]} Bc5+ {[%emt 0:00:00]} 21. Kg3 {[%emt 0:02:53]} (21. Kf1 $11) 21... Nxe5 $17 {[%emt 0:00:00]} 22. Qf5 {[%emt 0:00:41]} (22. Qd2 $17) 22... Rc6 {[%emt 0:00:00]} 23. Bg5 $2 {[%emt 0:12:30]} ({But not} 23. Bxe5 Rxe5 24. Qxe5 Bd6 $19) (23. Nd4 Bxd4 24. cxd4) 23... Qd6 {[%emt 0:00:00] ...g6 is the strong threat.} 24. Bf4 {[%emt 0:05:10]} Qd8 {[%emt 0:00:00]} 25. Bg5 $1 {[%emt 0:00:02] A strong pair of Bishops.} (25. Bxe5 $2 Rxe5 26. Qxe5 Bd6 $19) 25... Be7 {[%emt 0:00:00]} 26. Bf4 $2 {[%emt 0:02:08]} (26. f4 Ned7 27. Bd1) 26... Rf6 $19 {[%emt 0:00:00]} 27. Qh3 {[%emt 0:03:22]} Bd6 {[%emt 0:00:00]} 28. Kf2 {[%emt 0:01:35]} Qb6+ {[%emt 0:00:00]} 29. Kf1 {[%emt 0:00:02] [#]} Nc4 $1 {[%emt 0:00:00][%mdl 512]} 30. bxc4 {[%emt 0:04:12] Black must now prevent Bxd6.} Bxf4 {[%emt 0:00:00]} 31. Bd3 {[%emt 0:04:14]} (31. Nxf4 {was the only chance.} Rxf4 32. h6) 31... Re3 {[%emt 0:00:17]} (31... Qe3 $142 32. Rd1 Ne6 (32... dxc4 $2 33. Bxc4 Bc7 34. a5 $19)) 32. Rd1 {[%emt 0:01:01] [#]} (32. Qh4 Qc7 (32... Rxd3 $2 33. Nxf4 Qb2 34. Nxd3 $19) 33. Rd1) 32... Rxd3 $1 {[%emt 0:01:01][%mdl 512] Weighted Error Value: White=0.58/Black=0.66.  Loses game:     	White=1     	---        Mistake:       	White=5     	Black=1      Inaccurate:     	White=1     	Black=2      OK:         	White=8     	Black=7      Best:        	White=1     	Black=4      Strong:       	White=1     	Black=1      Brilliant:      	---       	Black=1} 0-1

[Event "Charlotte Spring IM-B 2024"]
[Site "Charlotte"]
[Date "2024.03.30"]
[Round "6.3"]
[White "Bregadze, Levan"]
[Black "Nandhakumar, Vaseegaran"]
[Result "1/2-1/2"]
[ECO "D91"]
[WhiteElo "2435"]
[BlackElo "2251"]
[Annotator "RC"]
[PlyCount "52"]
[EventDate "2024.03.27"]
[EventType "tourn"]
[EventCountry "USA"]
[SourceTitle "playchess.com"]
[Source "ChessBase"]
[SourceQuality "1"]
[TimeControl "5400+30"]

1. d4 {[%emt 0:00:09]} Nf6 {[%emt 0:00:09]} 2. c4 {[%emt 0:00:20]} g6 {[%emt 0:00:06]} 3. Nc3 {[%emt 0:00:15]} d5 {[%emt 0:00:08]} 4. Nf3 {[%emt 0:10:50]} Bg7 {[%emt 0:00:15]} 5. Bg5 {[%emt 0:01:12]} dxc4 {[%emt 0:01:45]} 6. e3 {[%emt 0:02:52]} O-O {[%emt 0:00:57]} 7. Bxc4 {[%emt 0:00:05]} c5 {[%emt 0:00:08]} 8. O-O {[%emt 0:01:33]} cxd4 {[%emt 0:02:28]} 9. Nxd4 {[%emt 0:01:03]} Qa5 {[%emt 0:02:54]} 10. Bxf6 {[%emt 0:01:52]} exf6 {[%emt 0:02:34]} 11. Nd5 {[%emt 0:08:11]} Nd7 {[%emt 0:06:26]} 12. Rc1 {[%emt 0:29:22]} Ne5 {[%emt 0:08:02]} 13. Ne7+ {[%emt 0:03:04]} Kh8 {[%emt 0:00:06]} 14. Nxc8 {[%emt 0:00:07]} Nxc4 {[%emt 0:01:01]} 15. Rxc4 {[%emt 0:00:26]} Raxc8 {[%emt 0:00:02]} 16. Rxc8 {[%emt 0:02:42]} Rxc8 {[%emt 0:00:04]} 17. Qb3 {[%emt 0:00:05]} Qc7 {[%emt 0:01:11]} 18. Rd1 {[%emt 0:02:31]} a6 {[%emt 0:02:21]} 19. g3 {[%emt 0:01:16]} f5 {[%emt 0:01:55]} 20. Ne2 {[%emt 0:01:14]} Qe7 {[%emt 0:05:43]} 21. Nf4 {[%emt 0:00:47]} b5 {[%emt 0:01:44]} 22. a4 {[%emt 0:01:19]} bxa4 {[%emt 0:05:45]} 23. Qxa4 {[%emt 0:00:05]} Bxb2 {[%emt 0:06:27]} 24. Qxa6 {[%emt 0:00:05]} Rf8 {[%emt 0:02:35]} 25. Qb5 {[%emt 0:03:29]} Bg7 {[%emt 0:02:15]} 26. Rd7 {[%emt 0:00:59]} Qe5 {[%emt 0:02:17]} 1/2-1/2

[Event "Charlotte Spring IM-B 2024"]
[Site "Charlotte"]
[Date "2024.03.30"]
[Round "6.4"]
[White "Lima, Darcy"]
[Black "Chirilov, James A"]
[Result "1-0"]
[ECO "B07"]
[WhiteElo "2364"]
[BlackElo "2082"]
[Annotator "RC"]
[PlyCount "81"]
[EventDate "2024.03.27"]
[EventType "tourn"]
[EventCountry "USA"]
[SourceTitle "playchess.com"]
[Source "ChessBase"]
[SourceQuality "1"]
[TimeControl "5400+30"]

1. d4 {[%emt 0:04:34]} Nf6 {[%emt 0:00:39]} 2. g3 {[%emt 0:00:08]} g6 {[%emt 0:04:09]} 3. Bg2 {[%emt 0:00:26]} Bg7 {[%emt 0:02:06]} 4. e4 {[%emt 0:00:39]} d6 {[%emt 0:01:01]} 5. Ne2 {[%emt 0:00:57]} O-O {[%emt 0:00:36]} 6. O-O {[%emt 0:00:18]} Nbd7 {[%emt 0:03:48]} 7. Nbc3 {[%emt 0:00:34]} e5 {[%emt 0:06:02]} 8. h3 {[%emt 0:02:47]} c6 {[%emt 0:02:30]} 9. a4 {[%emt 0:00:10]} Re8 {[%emt 0:10:25]} 10. Be3 {[%emt 0:09:03]} exd4 {[%emt 0:06:47]} 11. Bxd4 {[%emt 0:00:19]} Qe7 {[%emt 0:08:04]} 12. g4 {[%emt 0:06:19]} Nc5 {[%emt 0:50:23]} 13. Ng3 {[%emt 0:00:17]} h6 {[%emt 0:00:00]} 14. Qd2 {[%emt 0:12:30]} Be6 {[%emt 0:00:00]} 15. f4 {[%emt 0:07:32]} Bc4 {[%emt 0:00:00]} 16. Rfe1 {[%emt 0:00:05]} Ne6 {[%emt 0:00:00]} 17. Nf5 {[%emt 0:02:07]} gxf5 {[%emt 0:00:00]} 18. exf5 {[%emt 0:00:01]} Ne4 {[%emt 0:00:00]} 19. Rxe4 {[%emt 0:05:25]} Bxd4+ {[%emt 0:00:00]} 20. Kh2 {[%emt 0:07:30]} Bxc3 {[%emt 0:00:00]} 21. bxc3 {[%emt 0:00:10]} Bd5 {[%emt 0:00:00]} 22. Ree1 {[%emt 0:00:09]} Bxg2 {[%emt 0:00:00]} 23. Kxg2 {[%emt 0:00:05]} Qf6 {[%emt 0:00:00]} 24. fxe6 {[%emt 0:00:15]} Rxe6 {[%emt 0:00:00]} 25. Rxe6 {[%emt 0:04:13]} Qxe6 {[%emt 0:00:00]} 26. Re1 {[%emt 0:01:08]} Qf6 {[%emt 0:00:00]} 27. Kg3 {[%emt 0:36:19]} Rd8 {[%emt 0:00:00]} 28. Qd4 {[%emt 0:00:00]} Qxd4 {[%emt 0:00:00]} 29. cxd4 {[%emt 0:00:00]} Kf8 {[%emt 0:00:22]} 30. g5 {[%emt 0:00:00]} hxg5 {[%emt 0:00:52]} 31. fxg5 {[%emt 0:00:00]} d5 {[%emt 0:04:49]} 32. h4 {[%emt 0:00:00]} b6 {[%emt 0:00:55]} 33. h5 {[%emt 0:00:00]} a5 {[%emt 0:01:20]} 34. h6 {[%emt 0:00:00]} b5 {[%emt 0:00:37]} 35. Ra1 {[%emt 0:00:00]} Rb8 {[%emt 0:01:46]} 36. Rb1 {[%emt 0:00:42]} Rb6 {[%emt 0:00:36]} 37. Kf4 {[%emt 0:00:20]} Rb8 {[%emt 0:00:40]} 38. Kf5 {[%emt 0:00:23]} b4 {[%emt 0:00:21]} 39. Re1 {[%emt 0:01:31]} b3 {[%emt 0:00:34]} 40. Kf6 {[%emt 0:01:28]} Rd8 {[%emt 0:00:34]} 41. cxb3 {[%emt 0:00:10]} 1-0